bitfinex/quotes_ETHUSD_20251230
["timestamp","ask_amount","ask_price","bid_price","bid_amount"]
[1767110346500,2.3589939,2993.2,2991.9,1.10103313]
[1767110346710,2.3257,2993.2,2991.9,1.10103313]
[1767110347033,2.3589939,2993.2,2991.7,0.001]
[1767110347400,2.3257,2993.2,2991.7,0.001]
[1767110348010,2.3257,2993.2,2991.7,3.34357832]
[1767110348243,2.3257,2993.2,2991.7,0.001]
[1767110348427,0.873,2993.3,2991.7,0.001]
[1767110348740,0.873,2993.3,2991.7,1.0141591]
[1767110350239,0.002,2993.4,2991.9,6.68471538]
[1767110350438,0.002,2993.4,2991.9,10.02707307]
[1767110350639,0.002,2993.4,2992.0,0.876]
[1767110351955,0.002,2993.4,2992.1,3.84]
[1767110352130,0.002,2993.4,2992.2,0.4716]
[1767110352650,0.002,2993.4,2992.3,3.3419109]
[1767110353347,0.002,2993.4,2992.3,6.6838218]
[1767110355958,0.002,2994.6,2992.4,0.10022718]
[1767110356135,2.2521,2994.2,2992.4,0.10022718]
[1767110356359,2.2521,2994.2,2992.5,0.9441547]
[1767110356635,2.2521,2994.2,2992.6,0.876]
[1767110357826,2.2521,2994.0,2992.5,0.9441547]
[1767110358026,2.2521,2993.8,2992.2,0.4716]
[1767110358259,2.2521,2993.6,2992.2,0.4716]
[1767110358426,2.2521,2993.6,2992.2,3.34195695]
[1767110359542,2.2521,2993.6,2992.1,3.34205855]
[1767110359734,2.2521,2993.6,2992.1,3.34206782]
[1767110359935,2.2521,2993.6,2992.0,6.68449174]
[1767110360145,2.2521,2993.6,2992.0,3.34224576]
[1767110360345,2.2521,2993.4,2992.1,0.75605829]
[1767110360542,2.2521,2993.2,2992.1,0.75605829]
[1767110360757,2.2521,2993.2,2991.8,3.34243531]
[1767110362155,2.2521,2993.2,2991.7,0.001]
[1767110366158,2.2521,2992.5,2991.7,0.001]
[1767110366460,2.2521,2992.3,2991.7,0.001]
[1767110366631,2.2521,2992.1,2991.7,0.001]
[1767110366826,2.2521,2992.1,2991.6,0.001]
[1767110369137,2.35232718,2992.0,2991.6,0.001]
[1767110369864,2.2521,2991.6,2991.0,0.001]
[1767110370035,0.23523272,2991.5,2991.0,0.001]
[1767110370240,2.2521,2992.3,2991.0,0.001]
[1767110370563,0.873,2992.2,2991.0,0.001]
[1767110370765,0.10022718,2992.0,2991.0,0.001]
[1767110371268,2.35232718,2992.0,2991.0,0.001]
[1767110371564,0.873,2992.0,2991.0,0.001]
[1767110371774,2.35232718,2992.3,2991.0,0.001]
[1767110372072,0.873,2992.1,2991.0,0.001]
[1767110372640,0.97322718,2992.1,2991.0,0.001]
[1767110372838,2.2521,2992.0,2991.0,0.001]
[1767110373048,2.35232718,2992.0,2991.0,0.001]
[1767110373246,2.2521,2992.0,2991.0,0.001]
[1767110373450,0.873,2991.9,2991.0,0.001]
[1767110374275,0.873,2992.2,2991.0,0.001]
[1767110375340,3.1251,2992.2,2991.0,0.001]
[1767110375540,2.2521,2992.1,2991.0,0.001]
[1767110375772,2.35232718,2992.1,2991.0,0.001]
[1767110375972,0.10022718,2991.9,2991.0,0.001]
[1767110376177,2.2521,2991.8,2991.0,0.001]
[1767110376386,0.873,2991.7,2991.0,0.001]
[1767110376579,0.31251,2991.6,2991.0,0.001]
[1767110376750,2.56461,2991.6,2991.0,0.001]
[1767110378282,0.873,2991.6,2991.0,0.001]
[1767110380078,3.1251,2991.6,2991.0,0.001]
[1767110380284,2.35232718,2991.5,2990.7,0.001]
[1767110382675,2.2521,2991.2,2989.9,0.001]
[1767110382876,2.2521,2991.2,2990.0,0.001]
[1767110382877,0.10022718,2990.5,2990.0,0.001]
[1767110383077,0.10022718,2990.3,2990.0,0.001]
[1767110383258,0.10022718,2990.2,2990.0,0.001]
[1767110383588,2.35232718,2990.5,2989.9,0.001]
[1767110383756,0.10022718,2990.5,2989.9,0.001]
[1767110383961,0.874,2990.7,2989.9,0.001]
[1767110384160,0.10022718,2990.5,2989.9,0.001]
[1767110384369,0.874,2990.8,2989.9,0.001]
[1767110384585,0.10022718,2991.1,2989.9,0.001]
[1767110384786,0.10022718,2991.2,2989.9,0.001]
[1767110384984,0.10022718,2991.2,2989.9,6.69018692]
[1767110385199,0.10022718,2991.2,2990.0,1.09118119]
[1767110385997,0.10022718,2991.5,2990.0,1.09118119]
[1767110386174,0.10022718,2991.0,2990.0,1.09118119]
[1767110387004,0.10022718,2991.0,2990.1,6.6887395]
[1767110390516,0.10022718,2990.2,2990.0,1.09118119]
[1767110390814,0.10022718,2990.4,2989.9,0.001]
[1767110390991,0.10022718,2990.2,2990.0,0.001]
[1767110391400,0.10022718,2990.5,2990.0,0.001]
[1767110393318,0.10022718,2990.3,2990.0,0.001]
[1767110393715,0.10022718,2990.1,2990.0,0.001]
[1767110393914,0.10022718,2990.1,2989.5,0.001]
[1767110394088,0.10022718,2990.1,2989.5,0.33572272]
[1767110394290,0.10022718,2989.8,2989.5,0.001]
[1767110395124,0.10022718,2990.3,2989.5,0.001]
[1767110396704,0.10022718,2990.5,2989.5,0.001]
[1767110396908,0.10022718,2990.8,2989.5,0.001]
[1767110397288,0.10022718,2990.6,2989.5,0.878]
[1767110397523,0.10022718,2990.6,2989.6,0.75683057]
[1767110398598,0.10022718,2990.8,2989.6,0.75683057]
[1767110399000,0.10022718,2990.9,2989.6,1.63383057]
[1767110399220,0.10022718,2990.9,2989.7,6.6896344]
[1767110400021,0.10022718,2990.7,2989.7,6.6896344]
[1767110400191,2.4855,2991.0,2989.7,6.6896344]
[1767110400728,0.002,2991.6,2989.9,3.524]
[1767110400889,0.002,2991.6,2990.0,10.12265712]
[1767110401094,0.002,2992.8,2990.0,10.12265712]
[1767110401095,0.002,2992.8,2991.0,0.10022718]
[1767110401406,2.4875,2992.8,2991.0,0.10022718]
[1767110402198,2.4875,2992.8,2990.8,0.10022718]
[1767110402511,2.4875,2992.8,2990.9,0.10022718]
[1767110402897,2.4875,2992.8,2991.0,0.877]
[1767110403134,2.82165,2992.7,2990.9,6.59865712]
[1767110403294,2.82165,2992.7,2991.1,0.877]
[1767110403494,2.82165,2992.7,2991.1,7.56350328]
[1767110405320,0.002,2992.8,2991.4,6.7860599]
[1767110406022,0.002,2992.8,2991.7,6.59865712]
[1767110406223,0.002,2992.8,2991.8,0.877]
[1767110406443,0.002,2992.8,2991.7,6.59865712]
[1767110406591,2.4855,2992.6,2991.3,3.34302811]
[1767110406911,2.4855,2992.6,2990.5,4.16606793]
[1767110406912,2.82145,2992.5,2990.8,3.3435203]
[1767110407115,0.33595,2992.5,2991.3,3.34300412]
[1767110407420,0.874,2992.7,2991.3,3.34300412]
[1767110407421,0.002,2992.7,2991.5,6.59865712]
[1767110407634,0.002,2993.4,2992.0,0.0008]
[1767110407838,0.0332939,2993.3,2992.1,0.0008]
[1767110408136,2.4855,2993.2,2992.1,0.0008]
[1767110408503,0.002,2993.4,2992.1,0.0008]
[1767110408736,0.271271,2993.3,2992.1,0.0008]
[1767110408937,2.756771,2993.3,2992.1,0.0008]
[1767110409331,0.271271,2993.3,2992.1,0.0008]
[1767110409539,2.4875,2993.4,2992.1,0.0008]
[1767110410046,2.4855,2993.2,2992.1,0.0008]
[1767110410749,2.4855,2993.0,2992.1,0.0008]
[1767110411484,2.5187939,2992.9,2992.1,0.0008]
[1767110411931,2.4855,2993.2,2992.1,0.0008]
[1767110412120,2.4855,2993.2,2991.9,6.59865712]
[1767110412446,0.002,2993.4,2992.0,0.0008]
[1767110412739,0.002,2993.4,2992.2,0.0008]
[1767110413153,2.4855,2993.3,2992.2,0.0008]
[1767110413729,0.002,2993.4,2992.2,0.0008]
[1767110414045,0.002,2993.4,2992.4,0.0008]
[1767110414560,0.0012,2993.4,2992.3,7.35476291]
[1767110414712,0.0012,2993.4,2992.4,0.876]
[1767110415140,0.0012,2993.4,2991.8,3.4426309]
[1767110415141,2.4855,2993.3,2991.3,6.59865712]
[1767110415353,2.4855,2993.1,2991.5,3.34280461]
[1767110415553,0.25199939,2993.2,2991.7,6.59865712]
[1767110416123,0.0012,2993.4,2992.1,6.59865712]
[1767110416330,0.0012,2993.4,2992.1,7.47465712]
[1767110416635,2.308,2993.3,2991.8,0.001]
[1767110416845,2.308,2993.3,2991.9,0.876]
[1767110417459,2.308,2993.3,2991.8,0.001]
[1767110417768,2.308,2993.1,2991.8,0.001]
[1767110420981,2.308,2992.9,2991.8,0.001]
[1767110421332,2.308,2992.8,2991.8,0.001]
[1767110421765,2.3412939,2992.8,2991.8,0.001]
[1767110422060,2.308,2992.8,2991.8,0.001]
[1767110422564,2.3412939,2992.8,2991.8,0.001]
[1767110422777,2.308,2992.6,2991.8,0.001]
[1767110423473,2.308,2992.6,2991.1,0.001]
[1767110423674,2.308,2992.6,2991.2,0.001]
[1767110423968,2.308,2993.0,2991.2,0.10022718]
[1767110424170,0.873,2993.3,2991.5,0.001]
[1767110424355,2.308,2993.2,2991.7,0.001]
[1767110424557,2.6261,2993.1,2991.7,0.001]
[1767110424752,2.6261,2993.1,2991.9,0.001]
[1767110424953,0.0012,2993.4,2991.8,0.001]
[1767110425355,2.3092,2993.4,2991.8,0.001]
[1767110426459,0.10022718,2992.8,2991.8,6.68593882]
[1767110427086,0.10022718,2992.6,2991.8,0.001]
[1767110427254,2.40822718,2992.2,2991.8,0.001]
[1767110427458,0.10022718,2992.0,2990.9,0.876]
[1767110427659,2.40822718,2992.0,2990.8,3.34350207]
[1767110427855,2.40822718,2992.0,2990.6,0.001]
[1767110428084,2.308,2992.7,2990.6,0.877]
[1767110428268,0.10022718,2992.6,2990.9,6.90488252]
[1767110428470,0.10022718,2992.8,2991.0,10.03009026]
[1767110428690,0.10022718,2992.8,2991.0,13.37345368]
[1767110428870,0.0332939,2992.7,2991.0,10.03009026]
[1767110429071,2.308,2992.5,2991.1,2.56949728]
[1767110429456,0.10022718,2992.6,2991.1,2.56949728]
[1767110429868,0.10022718,2992.6,2991.1,1.69349728]
[1767110429869,2.40822718,2992.6,2991.1,1.69349728]
[1767110430078,0.10022718,2992.8,2991.1,1.69349728]
[1767110430079,2.308,2992.4,2991.2,0.876]
[1767110430299,2.308,2992.9,2991.2,0.876]
[1767110430598,2.308,2992.9,2991.4,6.68583272]
[1767110430768,2.308,2992.9,2991.4,10.02874908]
[1767110432692,2.308,2992.9,2991.5,0.876]
[1767110432899,2.308,2992.8,2991.5,0.876]
[1767110433104,2.308,2992.8,2991.4,6.68583272]
[1767110433403,2.308,2993.1,2991.5,1.52466679]
[1767110433711,0.13352108,2993.2,2991.5,1.52466679]
[1767110433712,2.40822718,2993.2,2991.5,1.52466679]
[1767110434063,2.40822718,2993.2,2991.5,0.64866679]
[1767110434264,2.40822718,2993.0,2991.5,0.64866679]
[1767110434562,2.55215211,2992.9,2991.6,4.07606692]
[1767110434761,0.873,2992.8,2991.6,4.07606692]
[1767110435181,0.873,2992.8,2991.6,7.41875979]
[1767110436191,2.308,2993.1,2991.6,7.41875979]
[1767110436401,0.873,2993.3,2991.6,7.41875979]
[1767110436564,0.0012,2993.4,2991.7,1.51996423]
[1767110436899,0.0012,2993.4,2991.8,10.02740823]
[1767110437496,0.0012,2993.4,2991.8,6.68493882]
[1767110437999,0.0012,2993.4,2991.8,10.02740823]
[1767110438228,0.0012,2993.4,2992.0,6.90488252]
[1767110438514,0.0012,2993.4,2992.1,1.22169962]
[1767110438677,0.0012,2993.4,2992.2,6.68404518]
[1767110439470,0.0012,2993.4,2992.2,10.02606777]
[1767110442207,0.10022718,2993.6,2992.5,6.90488252]
[1767110442404,0.10022718,2993.2,2992.6,0.876]
[1767110442607,0.10022718,2993.0,2992.3,0.876]
[1767110442818,0.10022718,2992.8,2992.4,0.42180226]
[1767110443120,0.10022718,2992.4,2991.8,0.001]
[1767110445796,0.10022718,2992.2,2991.8,0.001]
[1767110446120,0.10022718,2992.0,2991.8,0.001]
[1767110446685,0.10022718,2992.1,2991.8,0.001]
[1767110446906,0.10022718,2992.0,2991.8,0.001]
[1767110447210,0.10022718,2992.2,2991.8,0.001]
[1767110447380,0.10022718,2992.0,2991.8,0.001]
[1767110449302,0.36754262,2992.0,2991.8,0.001]
[1767110450385,0.10022718,2992.0,2991.8,0.001]
[1767110452697,2.57292718,2992.0,2991.2,0.001]
[1767110452909,0.09922718,2991.4,2991.2,0.001]
[1767110453392,2.57292718,2991.8,2991.2,0.001]
[1767110453393,0.10022718,2991.8,2991.2,0.001]
[1767110453596,0.10022718,2992.0,2991.2,0.001]
[1767110453799,0.10022718,2991.8,2991.2,0.001]
[1767110456218,0.10022718,2991.5,2991.2,0.001]
[1767110456830,0.10022718,2991.8,2991.5,0.0211046]
[1767110457010,0.10022718,2991.6,2991.5,0.0211046]
[1767110457516,0.10022718,2991.8,2991.5,0.0211046]
[1767110457721,0.10022718,2991.6,2991.5,0.0211046]
[1767110460027,0.10022718,2991.2,2991.1,0.001]
[1767110460420,0.10022718,2991.4,2991.1,3.34425164]
[1767110460622,0.10022718,2991.6,2991.2,0.66876084]
[1767110460829,0.10022718,2991.7,2991.2,0.66876084]
[1767110461212,0.10022718,2991.5,2991.2,4.0118244]
[1767110461418,0.10022718,2991.8,2991.2,4.0118244]
[1767110461618,0.10022718,2992.0,2991.2,7.35496427]
[1767110461923,0.10022718,2991.8,2991.3,0.73559643]
[1767110462525,0.10022718,2991.6,2991.3,0.73559643]
[1767110462725,0.10022718,2991.2,2991.1,0.001]
[1767110462930,0.10022718,2991.2,2990.6,3.34471762]
[1767110463130,0.10022718,2991.0,2990.6,3.34471762]
[1767110463329,0.10022718,2991.0,2990.6,0.001]
[1767110463844,0.10022718,2991.2,2990.6,0.001]
[1767110464068,0.10022718,2991.0,2990.6,0.001]
[1767110464426,0.10022718,2990.8,2990.6,0.001]
[1767110464630,0.10022718,2991.0,2990.6,0.001]
[1767110464949,0.10022718,2990.8,2990.6,0.001]
[1767110466350,0.10022718,2991.0,2990.6,0.001]
[1767110466544,0.10022718,2990.8,2990.6,0.001]
[1767110466851,0.10022718,2991.0,2990.6,0.001]
[1767110467056,0.10022718,2991.4,2990.6,0.001]
[1767110467349,0.10022718,2991.6,2990.6,0.001]
[1767110467555,0.10022718,2991.8,2990.7,1.00337673]
[1767110467930,0.10022718,2991.6,2991.4,0.02110459]
[1767110469456,0.97422718,2991.6,2991.4,0.02110459]
[1767110470152,0.10022718,2992.0,2991.4,0.02110459]
[1767110470353,0.10022718,2991.8,2991.4,0.02110459]
[1767110470551,0.10022718,2991.8,2991.4,0.35752222]
[1767110470755,0.10022718,2991.8,2991.0,3.3767677]
[1767110470756,0.10022718,2991.1,2990.6,0.001]
[1767110471053,0.10022718,2991.1,2990.6,3.34478544]
[1767110471240,0.10022718,2991.1,2990.6,0.001]
[1767110471651,0.09610528,2991.2,2990.6,0.001]
[1767110473055,0.10022718,2991.4,2990.6,0.001]
[1767110473254,2.46932718,2992.2,2990.6,0.001]
[1767110473555,0.874,2992.3,2990.6,10.0658699]
[1767110473729,0.10022718,2992.4,2990.7,1.12782397]
[1767110474054,0.10022718,2992.2,2990.7,1.12782397]
[1767110475459,0.10022718,2992.2,2990.8,10.030761]
[1767110475657,0.10022718,2992.2,2990.9,0.03343474]
[1767110476057,0.002,2991.4,2990.9,0.03343474]
[1767110476229,0.002,2992.6,2991.3,6.90488252]
[1767110476429,0.002,2992.6,2991.4,0.03342916]
[1767110476746,0.10222718,2992.6,2991.2,0.877]
[1767110477056,2.39392718,2992.6,2991.3,0.03343028]
[1767110477260,0.10022718,2992.4,2991.2,0.877]
[1767110477459,0.10022718,2992.4,2991.4,6.68583272]
[1767110477759,0.10022718,2992.0,2991.3,3.34297891]
[1767110478056,0.10022718,2992.0,2991.0,1.16830918]
[1767110478057,2.39192718,2992.0,2991.0,1.16830918]
[1767110478256,2.39192718,2991.8,2990.6,0.878]
[1767110478456,0.10022718,2992.1,2990.8,3.34355205]
[1767110478656,2.2917,2992.3,2991.3,3.34302811]
[1767110479153,2.2917,2992.3,2991.4,0.03342916]
[1767110479338,0.874,2992.5,2991.3,6.68605622]
[1767110479540,0.32679272,2992.4,2991.5,3.34280461]
[1767110481060,0.32679272,2992.4,2991.5,6.68560922]
[1767110481273,0.32679272,2992.4,2991.5,3.34280461]
[1767110482282,0.002,2992.6,2991.5,3.34280461]
[1767110482567,3.1657,2993.0,2991.6,6.63034321]
[1767110482755,0.002,2992.3,2991.6,6.63034321]
[1767110482935,0.002,2992.3,2991.5,6.68560922]
[1767110483136,2.2937,2992.3,2991.3,3.34402228]
[1767110483341,2.2937,2992.3,2991.4,6.71924525]
[1767110483757,3.1667,2992.3,2991.4,6.68581609]
[1767110484364,0.002,2992.3,2991.3,0.001]
[1767110484576,0.002,2992.3,2991.5,0.03342804]
[1767110484757,0.002,2992.3,2991.3,0.001]
[1767110484961,0.002,2992.3,2991.3,0.03443028]
[1767110485468,0.002,2992.3,2991.4,0.03342916]
[1767110485675,0.002,2992.3,2991.3,0.001]
[1767110486165,0.002,2992.3,2991.3,0.03443028]
[1767110486590,0.002,2992.3,2991.4,6.68583272]
[1767110486767,0.002,2992.3,2991.5,0.6720263]
[1767110487334,2.2937,2992.3,2991.4,3.82]
[1767110487536,2.2917,2991.9,2991.4,3.82]
[1767110487748,0.10022718,2992.0,2990.6,0.002]
[1767110487749,0.10022718,2991.5,2990.6,0.002]
[1767110487968,2.2917,2991.4,2990.7,0.001]
[1767110488946,0.97322718,2991.5,2990.6,0.001]
[1767110488947,2.2917,2991.0,2990.6,0.001]
[1767110489143,2.2917,2990.6,2990.1,0.00022966]
[1767110489353,2.2917,2990.4,2989.3,0.001]
[1767110489543,2.2917,2990.2,2989.3,0.001]
[1767110489741,2.2917,2990.2,2988.9,0.03445712]
[1767110489742,2.2917,2989.8,2988.9,0.001]
[1767110489958,2.2917,2989.6,2988.9,0.001]
[1767110490154,0.873,2989.6,2988.9,0.001]
[1767110490364,0.873,2989.6,2988.9,0.03445712]
[1767110490654,2.2917,2990.0,2989.0,0.033456]
[1767110490854,0.874,2989.8,2988.9,0.001]
[1767110491064,0.874,2989.8,2989.0,0.33812457]
[1767110491773,0.10022718,2990.9,2989.0,0.33812457]
[1767110491944,0.10022718,2990.1,2989.0,0.001]
[1767110492254,2.2917,2989.8,2989.0,0.001]
[1767110492654,2.2917,2989.6,2989.0,0.001]
[1767110492973,2.2917,2989.5,2989.0,0.001]
[1767110493176,0.10022718,2989.3,2989.0,0.001]
[1767110493974,2.2917,2989.0,2987.9,0.001]
[1767110494174,2.2917,2989.0,2987.8,0.17469726]
[1767110494175,0.97422718,2988.9,2988.0,0.001]
[1767110494350,3.26592718,2988.9,2988.0,0.001]
[1767110494674,3.26592718,2988.9,2988.0,0.33833991]
[1767110494978,0.10022718,2989.2,2988.2,6.59691629]
[1767110495292,0.10022718,2989.0,2988.0,3.68404419]
[1767110495498,0.10022718,2988.5,2988.0,3.68404419]
[1767110495696,0.10022718,2988.4,2988.0,0.33733991]
[1767110495972,0.10022718,2988.4,2987.9,3.34681745]
[1767110496375,0.10022718,2988.4,2987.8,0.02547511]
[1767110496602,0.10022718,2988.4,2987.2,6.59691629]
[1767110496603,0.10022718,2987.9,2986.6,0.6647707]
[1767110496881,0.10022718,2988.1,2987.1,3.34770875]
[1767110497179,0.10022718,2987.9,2987.2,0.42247087]
[1767110497379,0.10022718,2988.5,2987.2,7.01938716]
[1767110497680,0.10022718,2988.8,2987.6,6.59691629]
[1767110497681,0.97422718,2988.8,2987.6,6.59691629]
[1767110497874,0.10022718,2988.7,2987.6,6.59691629]
[1767110498185,0.10022718,2988.5,2987.6,6.59691629]
[1767110498369,0.10022718,2988.5,2987.7,0.65969163]
[1767110498569,0.10022718,2988.7,2987.7,0.65969163]
[1767110498769,0.10022718,2988.8,2988.0,6.59791629]
[1767110499085,0.10022718,2988.7,2988.5,0.02110458]
[1767110499288,0.10022718,2988.6,2988.5,0.02110458]
[1767110499583,0.10022718,2988.6,2988.0,0.001]
[1767110499875,0.10022718,2988.1,2988.0,0.001]
[1767110500084,0.10022718,2988.1,2987.1,3.34768772]
[1767110500377,0.10022718,2987.7,2987.1,3.34771805]
[1767110500690,0.10022718,2988.1,2986.9,3.34788096]
[1767110500691,0.10022718,2987.6,2986.9,3.34788096]
[1767110500850,0.10022718,2987.6,2986.8,3.34906481]
[1767110501052,0.10022718,2987.1,2986.9,0.68572289]
[1767110501297,0.10022718,2987.1,2985.7,3.88422151]
[1767110501298,0.874,2987.1,2985.7,0.53494103]
[1767110501461,0.10022718,2987.8,2985.7,0.53494103]
[1767110501462,2.2917,2987.8,2986.3,6.59691629]
[1767110501683,0.10022718,2987.7,2986.7,3.34815197]
[1767110502001,0.10022718,2987.5,2986.4,4.00817896]
[1767110502204,0.10022718,2987.5,2986.6,3.34828219]
[1767110502517,2.2917,2988.0,2986.7,6.69634796]
[1767110502687,0.874,2987.9,2986.7,6.69634796]
[1767110503006,0.10022718,2988.6,2986.7,6.69634796]
[1767110503007,3.1657,2988.4,2986.9,6.69590544]
[1767110503215,0.10022718,2987.6,2986.8,0.6696348]
[1767110503398,0.10022718,2987.6,2986.8,6.69612962]
[1767110503579,0.10022718,2987.6,2986.0,0.16]
[1767110503580,0.10022718,2987.4,2986.7,3.34815203]
[1767110503771,0.10022718,2987.4,2986.8,3.3480406]
[1767110503971,0.10022718,2987.8,2986.8,6.69610541]
[1767110504182,0.10022718,2987.5,2986.9,0.66961054]
[1767110504593,0.10022718,2987.7,2986.9,0.66961054]
[1767110504903,0.06093196,2987.7,2986.9,0.66961054]
[1767110505099,1e-08,2987.7,2987.5,0.02110457]
[1767110505300,0.10022718,2987.6,2987.5,0.02110457]
[1767110505597,0.10022718,2987.7,2987.5,0.02110457]
[1767110505807,0.10022718,2987.6,2987.5,0.02110457]
[1767110506100,0.10022718,2987.8,2987.5,0.02110457]
[1767110506518,0.10022718,2987.6,2987.5,0.02210457]
[1767110507577,0.10022718,2987.6,2986.1,10.24]
[1767110507895,0.10022718,2987.6,2985.7,0.53494103]
[1767110507896,0.10022718,2986.0,2985.7,0.53494103]
[1767110508078,0.10022718,2986.2,2985.7,3.88421704]
[1767110508266,0.10022718,2986.0,2985.7,0.53494103]
[1767110508472,0.10022718,2985.8,2985.7,0.53494103]
[1767110508691,0.15046881,2986.1,2985.7,0.53494103]
[1767110508999,0.10022718,2986.4,2985.8,0.38853271]
[1767110509224,0.10022718,2986.2,2985.8,0.38853271]
[1767110509504,0.10022718,2986.3,2985.8,3.34914853]
[1767110509704,0.10022718,2986.5,2985.8,3.34914853]
[1767110510020,0.97422718,2986.8,2985.8,6.69833467]
[1767110510021,0.97522718,2986.8,2985.8,6.69833467]
[1767110510187,0.10022718,2987.1,2985.8,6.69833467]
[1767110510390,0.10022718,2987.1,2985.8,10.04752081]
[1767110510391,0.10022718,2986.9,2985.8,10.04752081]
[1767110510781,0.10022718,2987.1,2986.9,0.00983587]
[1767110511084,0.10022718,2987.1,2985.8,10.04752081]
[1767110511282,0.07912262,2986.5,2985.8,3.34914853]
[1767110511512,0.10022718,2986.7,2985.8,6.69833467]
[1767110511812,0.10022718,2986.6,2985.8,6.69833467]
[1767110512016,0.10022718,2986.6,2985.9,0.72332757]
[1767110512435,0.10022718,2986.9,2986.6,0.02110455]
[1767110512728,0.10022718,2986.8,2986.6,0.02110455]
[1767110513085,0.10022718,2987.1,2986.6,0.02110455]
[1767110513288,0.10022718,2987.3,2986.6,0.02110455]
[1767110513507,0.10022718,2987.6,2986.7,3.34817691]
[1767110513727,0.10022718,2987.2,2986.8,0.33692815]
[1767110513923,0.10022718,2987.2,2986.6,0.02110455]
[1767110515084,0.10022718,2987.1,2986.6,0.02110455]
[1767110515431,0.10022718,2986.9,2986.6,0.02110455]
[1767110515641,0.10022718,2986.9,2986.5,0.001]
[1767110515980,0.10022718,2986.7,2986.5,0.001]
[1767110516187,0.10022718,2986.7,2985.9,3.34906825]
[1767110516381,0.10022718,2987.4,2986.0,6.93182312]
[1767110516616,0.10022718,2987.4,2986.6,6.69656436]
[1767110517001,0.10022718,2987.5,2986.6,6.69656436]
[1767110517212,0.875,2987.9,2986.6,7.60804725]
[1767110517382,0.875,2987.9,2986.8,6.59691629]
[1767110517588,0.10022718,2987.8,2986.9,0.65969163]
[1767110517890,0.10022718,2987.8,2986.6,7.57456436]
[1767110518402,0.10022718,2987.8,2986.7,0.03348176]
[1767110518603,0.10022718,2988.3,2987.2,6.59691629]
[1767110518912,0.10022718,2988.5,2987.2,6.59691629]
[1767110519117,0.10022718,2988.3,2987.2,6.59691629]
[1767110519411,0.10022718,2988.3,2987.3,0.74749163]
[1767110519590,0.10022718,2988.1,2987.3,0.74749163]
[1767110519790,0.10022718,2988.1,2987.3,4.0949558]
[1767110520097,0.10022718,2988.5,2987.3,7.44246023]
[1767110520920,0.10022718,2988.5,2987.3,4.0949558]
[1767110521094,0.10022718,2988.5,2987.4,0.47574626]
[1767110521095,0.10022718,2988.3,2987.4,0.47574626]
[1767110521295,0.10022718,2988.1,2987.4,0.47574626]
[1767110521553,0.10022718,2987.9,2987.4,0.47574626]
[1767110521695,0.10022718,2988.1,2986.9,3.78958648]
[1767110521696,0.10022718,2987.8,2986.9,3.78958648]
[1767110521895,0.10022718,2987.8,2987.0,3.3478051]
[1767110522297,0.10022718,2987.8,2987.0,2.91212366]
[1767110522524,0.10022718,2988.1,2987.0,2.91212366]
[1767110522724,0.10022718,2987.9,2987.0,2.91212366]
[1767110523092,0.10022718,2987.9,2986.9,7.13750617]
[1767110523424,0.10022718,2987.9,2986.5,0.001]
[1767110523425,0.10022718,2986.8,2986.5,0.001]
[1767110523808,0.10022718,2986.6,2986.5,0.001]
[1767110524131,0.10022718,2986.8,2986.5,0.001]
[1767110524539,0.10022718,2987.0,2986.5,0.001]
[1767110524827,0.10022718,2986.7,2986.5,0.001]
[1767110526100,0.07912264,2986.7,2986.5,0.001]
[1767110526302,0.07912264,2986.7,2985.9,3.38255798]
[1767110526503,0.10022718,2987.0,2985.9,6.73163196]
[1767110526835,0.10022718,2986.8,2985.9,3.38255798]
[1767110527529,0.10022718,2986.6,2985.9,6.73163196]
[1767110527924,0.10022718,2986.6,2985.9,3.38255798]
[1767110528126,0.07912265,2986.6,2985.9,3.38255798]
[1767110528300,0.07912265,2986.6,2985.8,0.878]
[1767110528500,0.10022718,2986.2,2985.7,0.53494103]
[1767110528831,0.10022718,2986.4,2985.7,0.53494103]
[1767110529033,0.10022718,2986.8,2985.8,0.03349186]
[1767110529244,0.10022718,2986.6,2985.7,0.53494103]
[1767110529434,0.10022718,2986.4,2985.8,0.39188287]
[1767110529635,0.10022718,2986.3,2985.8,0.39188287]
[1767110530231,0.10022718,2986.3,2985.7,0.53494103]
[1767110530804,0.10022718,2986.4,2985.7,0.53494103]
[1767110531007,0.10022718,2986.6,2985.9,0.001]
[1767110531640,0.10022718,2986.8,2985.9,0.001]
[1767110531641,0.97522718,2986.8,2985.9,0.001]
[1767110531809,0.002,2986.6,2985.9,0.001]
[1767110532010,0.002,2986.6,2986.0,0.33836769]
[1767110532233,0.002,2986.6,2985.9,0.001]
[1767110532440,0.002,2986.6,2985.9,3.35000605]
[1767110532937,0.002,2986.6,2986.0,6.69788689]
[1767110533145,0.10022718,2987.1,2986.0,6.7313765]
[1767110533352,2.4655,2987.4,2986.0,6.7313765]
[1767110533353,0.10022718,2987.0,2986.0,3.38241468]
[1767110533509,0.10022718,2987.0,2986.1,0.33834147]
[1767110534116,0.10022718,2986.9,2986.0,3.34893069]
[1767110534320,0.10022718,2986.9,2986.0,2.91308783]
[1767110534823,0.10022718,2986.7,2986.0,2.91308783]
[1767110535138,0.10022718,2986.7,2985.9,0.001]
[1767110535647,2.56572718,2986.9,2985.9,3.34997351]
[1767110535862,0.10022718,2987.0,2986.1,3.34884967]
[1767110536066,2.57312718,2987.0,2986.0,0.36848696]
[1767110536220,0.10022718,2986.6,2985.9,0.001]
[1767110537272,0.10022718,2986.4,2985.9,0.001]
[1767110537422,0.10022718,2986.2,2985.7,0.53494103]
[1767110537958,0.10022718,2986.0,2985.7,0.53494103]
[1767110539551,0.10022718,2986.2,2985.7,0.53494103]
[1767110539769,0.10022718,2986.0,2985.7,0.53494103]
[1767110540239,0.10022718,2986.0,2985.3,0.001]
[1767110540424,2.57312718,2986.0,2985.3,0.001]
[1767110540953,0.97522718,2986.2,2985.3,0.33609344]
[1767110540954,0.10022718,2986.2,2985.3,0.33609344]
[1767110541159,0.10022718,2986.2,2985.3,0.001]